[Event "MCR zen 2022"]
[Site "Hotel Opera, Jaromerice nad Rokytnou, Czech Republic"]
[Date "????.??.??"]
[Round "8.5"]
[White "Trasakova, Adela"]
[Black "Richterova, Natasa"]
[Result "0-1"]
[TimeControl "90 min/40 moves + 30 min + 30s/move"]
[WhiteElo "1842"]
[BlackElo "2181"]

1. d4 {[%clk 01:30:58]} {[%emt 00:00:02]} Nf6 {[%clk 01:30:34]} {[%emt
00:00:26]} 2. Nf3 {[%clk 01:31:26]} {[%emt 00:00:03]} e6 {[%clk 01:30:38]}
{[%emt 00:00:26]} 3. g3 {[%clk 01:31:54]} {[%emt 00:00:02]} b6 {[%clk
01:31:00]} {[%emt 00:00:07]} 4. Bg2 {[%clk 01:32:22]} {[%emt 00:00:02]} Bb7
{[%clk 01:31:25]} {[%emt 00:00:06]} 5. O-O {[%clk 01:32:47]} {[%emt 00:00:05]}
c5 {[%clk 01:31:51]} {[%emt 00:00:04]} 6. dxc5 {[%clk 01:32:48]} {[%emt
00:00:29]} bxc5 {[%clk 01:28:20]} {[%emt 00:04:01]} 7. c4 {[%clk 01:33:00]}
{[%emt 00:00:17]} Be7 {[%clk 01:27:13]} {[%emt 00:01:36]} 8. Nc3 {[%clk
01:33:08]} {[%emt 00:00:23]} O-O {[%clk 01:23:45]} {[%emt 00:03:57]} 9. Bf4
{[%clk 01:29:33]} {[%emt 00:04:05]} d6 {[%clk 01:19:08]} {[%emt 00:05:07]} 10.
Qb3 {[%clk 01:27:34]} {[%emt 00:02:27]} Qc8 {[%clk 01:18:39]} {[%emt 00:01:02]}
11. Rfd1 {[%clk 01:22:05]} {[%emt 00:05:59]} Rd8 {[%clk 01:14:25]} {[%emt
00:04:43]} 12. Rd2 {[%clk 01:18:51]} {[%emt 00:03:45]} Nc6 {[%clk 00:56:12]}
{[%emt 00:18:43]} 13. Rad1 {[%clk 01:08:17]} {[%emt 00:11:03]} Ne8 {[%clk
00:44:41]} {[%emt 00:12:01]} 14. e4 {[%clk 01:00:16]} {[%emt 00:08:32]} e5
{[%clk 00:44:08]} {[%emt 00:01:03]} 15. Be3 {[%clk 00:59:16]} {[%emt 00:01:30]}
Rb8 {[%clk 00:35:57]} {[%emt 00:08:41]} 16. Nd5 {[%clk 00:56:32]} {[%emt
00:03:14]} Qe6 {[%clk 00:32:19]} {[%emt 00:04:08]} 17. Qc3 {[%clk 00:53:12]}
{[%emt 00:03:49]} Rdc8 {[%clk 00:28:22]} {[%emt 00:04:28]} 18. b3 {[%clk
00:48:33]} {[%emt 00:05:09]} Bd8 {[%clk 00:28:13]} {[%emt 00:00:38]} 19. Qd3
{[%clk 00:41:23]} {[%emt 00:07:40]} Nd4 {[%clk 00:26:14]} {[%emt 00:02:29]} 20.
Qf1 {[%clk 00:37:29]} {[%emt 00:04:23]} Bxd5 {[%clk 00:22:22]} {[%emt
00:04:22]} 21. exd5 {[%clk 00:33:12]} {[%emt 00:04:47]} Nxf3+ {[%clk 00:12:56]}
{[%emt 00:09:56]} 22. Bxf3 {[%clk 00:33:27]} {[%emt 00:00:15]} Qg6 {[%clk
00:13:07]} {[%emt 00:00:20]} 23. Bg2 {[%clk 00:27:52]} {[%emt 00:06:05]} Ba5
{[%clk 00:12:32]} {[%emt 00:01:05]} 24. Re2 {[%clk 00:27:29]} {[%emt 00:00:53]}
f5 {[%clk 00:11:14]} {[%emt 00:01:47]} 25. Bd2 {[%clk 00:24:25]} {[%emt
00:03:35]} Bxd2 {[%clk 00:11:16]} {[%emt 00:00:29]} 26. Rdxd2 {[%clk 00:24:31]}
{[%emt 00:00:24]} Nf6 {[%clk 00:11:25]} {[%emt 00:00:20]} 27. f4 {[%clk
00:22:37]} {[%emt 00:02:25]} e4 {[%clk 00:10:59]} {[%emt 00:00:55]} 28. Qe1
{[%clk 00:21:46]} {[%emt 00:01:20]} Rb4 {[%clk 00:09:52]} {[%emt 00:01:38]} 29.
Re3 {[%clk 00:18:17]} {[%emt 00:03:59]} Ng4 {[%clk 00:09:33]} {[%emt 00:00:49]}
30. Rc3 {[%clk 00:16:49]} {[%emt 00:01:58]} Qf6 {[%clk 00:09:41]} {[%emt
00:00:22]} 31. Rcc2 {[%clk 00:16:23]} {[%emt 00:00:56]} Rcb8 {[%clk 00:07:41]}
{[%emt 00:02:31]} 32. Qe2 {[%clk 00:15:58]} {[%emt 00:00:55]} Qg6 {[%clk
00:07:00]} {[%emt 00:01:11]} 33. Rc3 {[%clk 00:15:29]} {[%emt 00:00:58]} a5
{[%clk 00:05:36]} {[%emt 00:01:53]} 34. Rb2 {[%clk 00:14:56]} {[%emt 00:01:03]}
Qf6 {[%clk 00:05:59]} {[%emt 00:00:08]} 35. h3 {[%clk 00:05:05]} {[%emt
00:10:21]} Qxc3 {[%clk 00:06:13]} {[%emt 00:00:16]} 36. hxg4 {[%clk 00:05:33]}
{[%emt 00:00:02]} Qxg3 {[%clk 00:04:05]} {[%emt 00:02:38]} 37. gxf5 {[%clk
00:04:43]} {[%emt 00:01:20]} Qxf4 {[%clk 00:02:11]} {[%emt 00:02:24]} 38. Rb1
{[%clk 00:04:02]} {[%emt 00:01:11]} Qxf5 {[%clk 00:00:46]} {[%emt 00:01:55]} 39.
Rf1 {[%clk 00:04:31]} {[%emt 00:00:01]} Qg6 {[%clk 00:01:08]} {[%emt 00:00:08]}
40. Kh2 {[%clk 00:04:10]} {[%emt 00:00:50]} Rf8 {[%clk 00:01:14]} {[%emt
00:00:25]} 41. Rxf8+ {[%clk 00:28:21]} {[%emt 00:06:19]} Kxf8 {[%clk 00:31:37]}
{[%emt 00:00:07]} 42. Bxe4 {[%clk 00:28:48]} {[%emt 00:00:03]} Qh6+ {[%clk
00:31:38]} {[%emt 00:00:29]} 43. Kg1 {[%clk 00:29:17]} {[%emt 00:00:01]} Qg5+
{[%clk 00:30:42]} {[%emt 00:01:27]} 44. Kh1 {[%clk 00:28:41]} {[%emt 00:01:06]}
Rb7 {[%clk 00:29:48]} {[%emt 00:01:22]} 0-1